fUSD/lending_fUSD_20250628
["ID","MTS","AMOUNT","RATE_DAILY","PERIOD"]
[368246485,1751071860671,-490.0,0.00044383,60]
[368246486,1751071860681,-722.82,0.00044383,60]
[368246487,1751071860691,-492.97,0.00044383,60]
[368246488,1751071860702,-538.32,0.00044383,60]
[368246489,1751071860712,-490.0,0.00044383,60]
[368246490,1751071860721,-1684.21,0.00044383,60]
[368246491,1751071860731,-490.0,0.00044383,60]
[368246492,1751071860740,-742.09,0.00044383,60]
[368246493,1751071860750,-1592.37,0.00044383,60]
[368246494,1751071860760,-490.0,0.00044383,60]
[368246495,1751071860771,-520.76,0.00044383,60]
[368246496,1751071860782,-490.0,0.00044383,60]
[368246497,1751071860792,-490.0,0.00044383,60]
[368246498,1751071860802,-1085.58,0.00044383,60]
[368246499,1751071860812,-592.17,0.00044383,60]
[368246500,1751071860824,-717.14,0.00044383,60]
[368246501,1751071860834,-588.68,0.00044383,60]
[368246502,1751071860844,-2828.04,0.00044383,60]
[368246503,1751071860853,-490.0,0.00044383,60]
[368246504,1751071860863,-2351.28,0.00044383,60]
[368246505,1751071860872,-490.0,0.00044383,60]
[368246506,1751071860881,-490.0,0.00044383,60]
[368246507,1751071860890,-490.0,0.00044383,60]
[368246508,1751071860899,-1128.63,0.00044383,60]
[368246509,1751071860909,-1000.0,0.00044383,60]
[368246510,1751071860918,-490.0,0.00044383,60]
[368246511,1751071860927,-490.0,0.00044383,60]
[368246512,1751071860937,-490.0,0.00044383,60]
[368246513,1751071860948,-28992.31824522,0.00044383,30]
[368246514,1751071860958,-150.0,0.00044404,2]
[368246515,1751071860967,-151.0,0.00044405,2]
[368246516,1751071860977,-150.0,0.0004442,2]
[368246517,1751071860987,-151.0,0.00044486,2]
[368246518,1751071860996,-150.0,0.00044486,2]
[368246519,1751071861006,-150.0,0.00044486,2]
[368246520,1751071861014,-150.091,0.00044486,2]
[368246521,1751071861024,-180.388,0.00044486,2]
[368246522,1751071861033,-193.441,0.00044486,2]
[368246523,1751071861042,-235.908,0.00044486,2]
[368246524,1751071861051,-150.0,0.00044512,2]
[368246525,1751071861060,-155.74,0.00044521,2]
[368246526,1751071861070,-275.78651878,0.00044563,28]
[368246527,1751071861079,-150.0,0.00044589,2]
[368246528,1751071861088,-150.0,0.00044598,2]
[368246529,1751071861097,-150.0,0.00044618,2]
[368246530,1751071861107,-168.3888056,0.00044619,2]
[368246531,1751071861116,-150.0,0.00044647,2]
[368246532,1751071861125,-9785.18177869,0.00044648,15]
[368246533,1751071861135,-397.0,0.00044652,7]
[368246534,1751071861144,-500.0,0.00044656,60]
[368246535,1751071861154,-500.0,0.00044656,60]
[368246536,1751071861164,-490.0,0.00044657,60]
[368246537,1751071861174,-490.0,0.00044657,60]
[368246538,1751071861183,-490.0,0.00044657,60]
[368246539,1751071861192,-490.0,0.00044657,60]
[368246540,1751071861205,-490.0,0.00044657,60]
[368246541,1751071861214,-290.21,0.00044657,60]
[368246542,1751071861223,-490.0,0.00044657,60]
[368246543,1751071861232,-490.0,0.00044657,60]
[368246544,1751071861244,-490.0,0.00044657,60]
[368246545,1751071861253,-193.81,0.00044657,60]
[368246546,1751071861262,-432.66,0.00044657,60]
[368246547,1751071861271,-490.0,0.00044657,60]
[368246548,1751071861282,-490.0,0.00044657,60]
[368246549,1751071861291,-490.0,0.00044657,60]
[368246550,1751071861300,-490.0,0.00044657,60]
[368246551,1751071861309,-151.0,0.00044657,2]
[368246552,1751071861319,-490.0,0.00044657,60]
[368246553,1751071861328,-490.0,0.00044657,60]
[368246554,1751071861338,-490.0,0.00044657,60]
[368246555,1751071861347,-490.0,0.00044657,60]
[368246556,1751071861355,-490.0,0.00044657,60]
[368246557,1751071861365,-490.0,0.00044657,60]
[368246558,1751071861374,-520.0,0.00044657,60]
[368246559,1751071861383,-632.98,0.00044657,60]
[368246560,1751071861392,-490.0,0.00044657,60]
[368246561,1751071861402,-490.0,0.00044657,60]
[368246562,1751071861411,-490.0,0.00044657,60]
[368246563,1751071861421,-594.52,0.00044657,60]
[368246564,1751071861430,-490.0,0.00044657,60]
[368246565,1751071861439,-490.0,0.00044657,60]
[368246566,1751071861449,-490.0,0.00044657,60]
[368246567,1751071861458,-490.0,0.00044657,60]
[368246568,1751071861467,-490.0,0.00044657,60]
[368246569,1751071861477,-490.0,0.00044657,60]
[368246570,1751071861487,-490.0,0.00044657,60]
[368246571,1751071861496,-553.58,0.00044657,60]
[368246572,1751071861505,-153.52,0.00044657,60]
[368246573,1751071861515,-508.58,0.00044657,60]
[368246574,1751071861524,-490.0,0.00044657,60]
[368246575,1751071861533,-490.0,0.00044657,60]
[368246576,1751071861542,-490.0,0.00044657,60]
[368246577,1751071861552,-490.0,0.00044657,60]
[368246578,1751071861562,-490.0,0.00044657,60]
[368246579,1751071861572,-490.0,0.00044657,60]
[368246580,1751071861581,-490.0,0.00044657,60]
[368246581,1751071861590,-490.0,0.00044657,60]
[368246582,1751071861600,-490.0,0.00044657,60]
[368246583,1751071861610,-490.0,0.00044657,60]
[368246584,1751071861619,-490.0,0.00044657,60]
[368246585,1751071861628,-656.12,0.00044657,2]
[368246586,1751071861638,-490.0,0.00044657,60]
[368246587,1751071861647,-517.58742291,0.00044657,60]
[368246588,1751071861657,-490.0,0.00044657,60]
[368246589,1751071861666,-510.76,0.00044657,60]
[368246590,1751071861676,-490.0,0.00044657,60]
[368246591,1751071861685,-490.0,0.00044657,60]
[368246592,1751071861694,-687.24,0.00044657,60]
[368246593,1751071861704,-152.72,0.00044657,60]
[368246594,1751071861713,-490.0,0.00044657,60]
[368246595,1751071861722,-490.0,0.00044657,60]
[368246596,1751071861731,-490.0,0.00044657,60]
[368246597,1751071861740,-490.0,0.00044657,60]
[368246598,1751071861749,-490.0,0.00044657,60]
[368246599,1751071861759,-490.0,0.00044657,60]
[368246600,1751071861768,-490.0,0.00044657,60]
[368246601,1751071861777,-490.0,0.00044657,60]
[368246602,1751071861787,-490.0,0.00044657,60]
[368246603,1751071861796,-490.0,0.00044657,60]
[368246604,1751071861805,-490.0,0.00044657,60]
[368246605,1751071861815,-490.0,0.00044657,60]
[368246606,1751071861824,-490.0,0.00044657,60]
[368246607,1751071861835,-490.0,0.00044657,60]
[368246608,1751071861846,-1241.16,0.00044657,60]
[368246609,1751071861856,-490.0,0.00044657,60]
[368246610,1751071861866,-490.0,0.00044657,60]
[368246611,1751071861875,-490.0,0.00044657,60]
[368246612,1751071861884,-490.0,0.00044657,60]
[368246613,1751071861893,-779.72,0.00044657,60]
[368246614,1751071861903,-490.0,0.00044657,60]
[368246615,1751071861912,-490.0,0.00044657,60]
[368246616,1751071861921,-500.0,0.00044657,120]
[368246617,1751071861930,-490.0,0.00044657,60]
[368246618,1751071861939,-490.0,0.00044657,60]
[368246619,1751071861949,-399.56,0.00044657,60]
[368246620,1751071861958,-490.0,0.00044657,60]
[368246621,1751071861967,-490.0,0.00044657,60]
[368246622,1751071861976,-490.0,0.00044657,60]
[368246623,1751071861985,-490.0,0.00044657,60]
[368246624,1751071861995,-490.0,0.00044657,60]
[368246625,1751071862006,-490.0,0.00044657,60]
[368246626,1751071862015,-597.71,0.00044657,60]
[368246627,1751071862025,-250.75,0.00044657,60]
[368246628,1751071862034,-450.26,0.00044657,60]
[368246629,1751071862043,-490.0,0.00044657,60]
[368246630,1751071862053,-490.0,0.00044657,60]
[368246631,1751071862062,-490.0,0.00044657,60]
[368246632,1751071862071,-490.0,0.00044657,60]
[368246633,1751071862082,-490.0,0.00044657,60]
[368246634,1751071862092,-490.0,0.00044657,60]
[368246635,1751071862102,-564.15892033,0.00044657,60]
[368246636,1751071862111,-490.0,0.00044657,60]
[368246637,1751071862122,-156.106223,0.00044657,60]
[368246638,1751071862132,-696.1,0.00044657,60]
[368246639,1751071862144,-490.0,0.00044657,60]
[368246640,1751071862153,-490.0,0.00044657,60]
[368246641,1751071862163,-490.0,0.00044657,60]
[368246642,1751071862173,-490.0,0.00044657,60]
[368246643,1751071862182,-490.0,0.00044657,60]
[368246644,1751071862192,-490.0,0.00044657,60]
[368246645,1751071862203,-490.0,0.00044657,60]
[368246646,1751071862214,-490.0,0.00044657,60]
[368246647,1751071862223,-490.0,0.00044657,60]
[368246648,1751071862232,-490.0,0.00044657,60]
[368246649,1751071862242,-490.0,0.00044657,60]
[368246650,1751071862251,-490.0,0.00044657,60]
[368246651,1751071862260,-154.28143,0.00044657,60]
[368246652,1751071862270,-490.0,0.00044657,60]
[368246653,1751071862279,-490.0,0.00044657,60]
[368246654,1751071862288,-490.0,0.00044657,60]
[368246655,1751071862297,-490.0,0.00044657,60]
[368246656,1751071862306,-490.0,0.00044657,60]
[368246657,1751071862316,-490.0,0.00044657,60]
[368246658,1751071862325,-490.0,0.00044657,60]
[368246659,1751071862335,-490.0,0.00044657,60]
[368246660,1751071862344,-490.0,0.00044657,60]
[368246661,1751071862353,-490.0,0.00044657,60]
[368246662,1751071862363,-179.564808,0.00044657,60]
[368246663,1751071862373,-721.73,0.00044657,60]
[368246664,1751071862382,-490.0,0.00044657,60]
[368246665,1751071862395,-490.0,0.00044657,60]
[368246666,1751071862405,-490.0,0.00044657,60]
[368246667,1751071862415,-490.0,0.00044657,60]
[368246668,1751071862425,-490.0,0.00044657,60]
[368246669,1751071862434,-438.64,0.00044657,60]
[368246670,1751071862443,-490.0,0.00044657,60]
[368246671,1751071862582,-502.86,0.00044657,60]
[368246672,1751071862592,-490.0,0.00044657,60]
[368246673,1751071862602,-490.0,0.00044657,60]
[368246674,1751071862611,-524.2,0.00044657,60]
[368246675,1751071862621,-490.0,0.00044657,60]
[368246676,1751071862631,-490.0,0.00044657,60]
[368246677,1751071862640,-490.0,0.00044657,60]
[368246678,1751071862649,-958.32,0.00044657,60]
[368246679,1751071862659,-490.0,0.00044657,60]
[368246680,1751071862668,-490.0,0.00044657,60]
[368246681,1751071862677,-490.0,0.00044657,60]
[368246682,1751071862687,-490.0,0.00044657,60]
[368246683,1751071862697,-490.0,0.00044657,60]
[368246684,1751071862706,-507.37,0.00044657,60]
[368246685,1751071862716,-490.0,0.00044657,60]
[368246686,1751071862725,-490.0,0.00044657,60]
[368246687,1751071862734,-490.0,0.00044657,60]
[368246688,1751071862743,-490.0,0.00044657,60]
[368246689,1751071862753,-743.38,0.00044657,60]
[368246690,1751071862762,-490.0,0.00044657,60]
[368246691,1751071862771,-490.0,0.00044657,60]
[368246692,1751071862780,-526.08,0.00044657,60]
[368246693,1751071862790,-557.04,0.00044657,60]
[368246694,1751071862799,-490.0,0.00044657,60]
[368246695,1751071862808,-490.0,0.00044657,60]
[368246696,1751071862817,-490.0,0.00044657,60]
[368246697,1751071862826,-1492.54,0.00044657,60]
[368246698,1751071862836,-519.17,0.00044657,60]
[368246699,1751071862846,-490.0,0.00044657,60]
[368246700,1751071862856,-490.0,0.00044657,60]
[368246701,1751071862865,-300.0,0.00044657,60]
[368246702,1751071862874,-631.14,0.00044657,60]
[368246703,1751071862883,-490.0,0.00044657,60]
[368246704,1751071862892,-490.0,0.00044657,60]
[368246705,1751071862902,-490.0,0.00044657,60]
[368246706,1751071862911,-490.0,0.00044657,60]
[368246707,1751071862921,-490.0,0.00044657,60]
[368246708,1751071862930,-490.0,0.00044657,60]
[368246709,1751071862939,-490.0,0.00044657,60]
[368246710,1751071862949,-490.0,0.00044657,60]
[368246711,1751071862958,-490.0,0.00044657,60]
[368246712,1751071862968,-490.0,0.00044657,60]
[368246713,1751071862976,-490.0,0.00044657,60]
[368246714,1751071862985,-490.0,0.00044657,60]
[368246715,1751071862995,-490.0,0.00044657,60]
[368246716,1751071863003,-570.52,0.00044657,60]
[368246717,1751071863012,-490.0,0.00044657,60]
[368246718,1751071863022,-490.0,0.00044657,60]
[368246719,1751071863031,-165.936069,0.00044657,60]
[368246720,1751071863041,-490.0,0.00044657,60]
[368246721,1751071863051,-490.0,0.00044657,60]
[368246722,1751071863061,-666.63,0.00044657,60]
[368246723,1751071863071,-490.0,0.00044657,60]
[368246724,1751071863081,-490.0,0.00044657,60]
[368246725,1751071863091,-920.83,0.00044657,60]
[368246726,1751071863101,-490.0,0.00044657,60]
[368246727,1751071863111,-490.0,0.00044657,60]
[368246728,1751071863120,-1154.84,0.00044657,60]
[368246729,1751071863129,-490.0,0.00044657,60]
[368246730,1751071863139,-490.0,0.00044657,60]
[368246731,1751071863148,-490.0,0.00044657,60]
[368246732,1751071863157,-464.79970982,0.00044657,60]
[368246733,1751071863167,-490.0,0.00044657,60]
[368246734,1751071863178,-490.0,0.00044657,60]
[368246735,1751071863187,-490.0,0.00044657,60]
[368246736,1751071863196,-733.75,0.00044657,60]
[368246737,1751071863212,-490.0,0.00044657,60]
[368246738,1751071863222,-490.0,0.00044657,60]
[368246739,1751071863232,-519.13,0.00044657,60]
[368246740,1751071863243,-490.0,0.00044657,60]
[368246741,1751071863252,-490.0,0.00044657,60]
[368246742,1751071863262,-1054.47,0.00044657,60]
[368246743,1751071863271,-490.0,0.00044657,60]
[368246744,1751071863282,-490.0,0.00044657,60]
[368246745,1751071863291,-490.0,0.00044657,60]
[368246746,1751071863300,-490.0,0.00044657,60]
[368246747,1751071863310,-490.0,0.00044657,60]
[368246748,1751071863320,-324.32,0.00044657,60]
[368246749,1751071863329,-490.0,0.00044657,60]
[368246750,1751071863339,-490.0,0.00044657,60]
[368246751,1751071863349,-490.0,0.00044657,60]
[368246752,1751071863358,-741.5,0.00044657,60]
[368246753,1751071863368,-526.74,0.00044657,60]
[368246754,1751071863377,-490.0,0.00044657,60]
[368246755,1751071863387,-490.0,0.00044657,60]
[368246756,1751071863396,-513.84,0.00044657,60]
[368246757,1751071863406,-490.0,0.00044657,60]
[368246758,1751071863416,-490.0,0.00044657,60]
[368246759,1751071863426,-1040.12,0.00044657,60]
[368246760,1751071863436,-490.0,0.00044657,60]
[368246761,1751071863446,-492.67,0.00044657,60]
[368246762,1751071863456,-490.0,0.00044657,60]
[368246763,1751071863466,-555.78,0.00044657,60]
[368246764,1751071863476,-490.0,0.00044657,60]
[368246765,1751071863488,-3283.31,0.00044657,60]
[368246766,1751071863500,-490.0,0.00044657,60]
[368246767,1751071863514,-490.0,0.00044657,60]
[368246768,1751071863524,-490.0,0.00044657,60]
[368246769,1751071863534,-490.0,0.00044657,60]
[368246770,1751071863545,-490.0,0.00044657,60]
[368246771,1751071863556,-858.82,0.00044657,60]
[368246772,1751071863567,-490.0,0.00044657,60]
[368246773,1751071863578,-490.0,0.00044657,60]
[368246774,1751071863589,-744.08,0.00044657,60]
[368246775,1751071863599,-490.0,0.00044657,60]
[368246776,1751071863609,-490.0,0.00044657,60]
[368246777,1751071863620,-1463.6,0.00044657,60]
[368246778,1751071863630,-500.62,0.00044657,60]
[368246779,1751071863640,-504.68,0.00044657,60]
[368246780,1751071863650,-490.0,0.00044657,60]
[368246781,1751071863660,-848.47,0.00044657,60]
[368246782,1751071863670,-490.0,0.00044657,60]
[368246783,1751071863680,-490.0,0.00044657,60]
[368246784,1751071863690,-632.81,0.00044657,60]
[368246785,1751071863700,-490.0,0.00044657,60]
[368246786,1751071863710,-1381.52,0.00044657,60]
[368246787,1751071863720,-490.0,0.00044657,60]
[368246788,1751071863730,-821.19,0.00044657,60]
[368246789,1751071863740,-490.0,0.00044657,60]
[368246790,1751071863750,-504.18,0.00044657,60]
[368246791,1751071863760,-980.59,0.00044657,60]
[368246792,1751071863770,-490.0,0.00044657,60]
[368246793,1751071863780,-701.16,0.00044657,60]
[368246794,1751071863796,-490.0,0.00044657,60]
[368246795,1751071863809,-1101.82,0.00044657,60]
[368246796,1751071863820,-490.0,0.00044657,60]
[368246797,1751071863830,-490.0,0.00044657,60]
[368246798,1751071863840,-490.0,0.00044657,60]
[368246799,1751071863850,-492.8,0.00044657,60]
[368246800,1751071863860,-490.0,0.00044657,60]
[368246801,1751071863870,-490.0,0.00044657,60]
[368246802,1751071863880,-1389.59,0.00044657,60]
[368246803,1751071863890,-319.08,0.00044657,60]
[368246804,1751071863900,-2742.88,0.00044657,60]
[368246805,1751071863909,-761.04,0.00044657,60]
[368246806,1751071863919,-490.0,0.00044657,60]
[368246807,1751071863929,-3633.8,0.00044657,60]
[368246808,1751071863940,-631.21,0.00044657,60]
[368246809,1751071863950,-560.29,0.00044657,60]
[368246810,1751071863960,-490.0,0.00044657,60]
[368246811,1751071863971,-1621.27,0.00044657,60]
[368246812,1751071863982,-490.0,0.00044657,60]
[368246813,1751071863992,-1119.72,0.00044657,60]
[368246814,1751071864002,-528.93,0.00044657,60]
[368246815,1751071864012,-1270.62,0.00044657,60]
[368246816,1751071864022,-490.0,0.00044657,60]
[368246817,1751071864032,-1055.73,0.00044657,60]
[368246818,1751071864041,-490.0,0.00044657,60]
[368246819,1751071864052,-490.0,0.00044657,60]
[368246820,1751071864062,-490.0,0.00044657,60]
[368246821,1751071864071,-3883.34,0.00044657,60]
[368246822,1751071864085,-490.0,0.00044657,60]
[368246823,1751071864095,-881.48,0.00044657,60]
[368246824,1751071864105,-797.91,0.00044657,60]
[368246825,1751071864116,-490.0,0.00044657,60]
[368246826,1751071864126,-564.31,0.00044657,60]
[368246827,1751071864136,-960.84,0.00044657,60]
[368246828,1751071864146,-544.38,0.00044657,60]
[368246829,1751071864156,-819.67,0.00044657,60]
[368246830,1751071864166,-490.0,0.00044657,60]
[368246831,1751071864177,-548.79,0.00044657,60]
[368246832,1751071864187,-490.0,0.00044657,60]
[368246833,1751071864197,-1100.02,0.00044657,60]
[368246834,1751071864211,-490.0,0.00044657,60]
[368246835,1751071864221,-877.78,0.00044657,60]
[368246836,1751071864231,-519.68,0.00044657,60]
[368246837,1751071864240,-490.0,0.00044657,60]
[368246838,1751071864249,-499.03,0.00044657,60]
[368246839,1751071864259,-1040.49,0.00044657,60]
[368246840,1751071864269,-490.0,0.00044657,60]
[368246841,1751071864278,-257.19,0.00044657,60]
[368246842,1751071864288,-164.56,0.00044657,60]
[368246843,1751071864298,-1086.04,0.00044657,60]
[368246844,1751071864308,-942.77,0.00044657,60]
[368246845,1751071864318,-953.56,0.00044657,60]
[368246846,1751071864327,-490.0,0.00044657,60]
[368246847,1751071864336,-6952.88,0.00044657,60]
[368246848,1751071864346,-490.0,0.00044657,60]
[368246849,1751071864356,-531.35,0.00044657,60]
[368246850,1751071864365,-1825.19,0.00044657,60]
[368246851,1751071864375,-490.0,0.00044657,60]
[368246852,1751071864384,-490.0,0.00044657,60]
[368246853,1751071864394,-551.06,0.00044657,60]
[368246854,1751071864404,-490.0,0.00044657,60]
[368246855,1751071864414,-1040.65,0.00044657,60]
[368246856,1751071864424,-551.92,0.00044657,60]
[368246857,1751071864433,-1592.1,0.00044657,60]
[368246858,1751071864443,-990.34,0.00044657,60]
[368246859,1751071864453,-490.0,0.00044657,60]
[368246860,1751071864463,-490.0,0.00044657,60]
[368246861,1751071864474,-511.18,0.00044657,60]
[368246862,1751071864485,-490.0,0.00044657,60]
[368246863,1751071864495,-660.58,0.00044657,60]
[368246864,1751071864505,-899.19,0.00044657,60]
[368246865,1751071864516,-490.0,0.00044657,60]
[368246866,1751071864525,-554.3,0.00044657,60]
[368246867,1751071864535,-548.05,0.00044657,60]
[368246868,1751071864545,-490.0,0.00044657,60]
[368246869,1751071864555,-490.0,0.00044657,60]
[368246870,1751071864566,-490.0,0.00044657,60]
[368246871,1751071864575,-490.0,0.00044657,60]
[368246872,1751071864586,-116331.36,0.00044657,60]
[368246873,1751071864596,-490.0,0.00044657,60]
[368246874,1751071864606,-610.0,0.00044657,60]
[368246875,1751071864616,-525.2,0.00044657,60]
[368246876,1751071864626,-490.0,0.00044657,60]
[368246877,1751071864644,-787.73,0.00044657,60]
[368246878,1751071864657,-896.07,0.00044657,60]
[368246879,1751071864668,-774.82,0.00044657,60]
[368246880,1751071864678,-1205.17,0.00044657,60]
[368246881,1751071864687,-1755.56,0.00044657,60]
[368246882,1751071864697,-490.0,0.00044657,60]
[368246883,1751071864707,-490.0,0.00044657,60]
[368246884,1751071864717,-1776.88,0.00044657,60]
[368246885,1751071864727,-497.76,0.00044657,60]
[368246886,1751071864736,-490.0,0.00044657,60]
[368246887,1751071864746,-490.0,0.00044657,60]
[368246888,1751071864756,-490.0,0.00044657,60]
[368246889,1751071864766,-490.0,0.00044657,60]
[368246890,1751071864776,-490.0,0.00044657,60]
[368246891,1751071864786,-490.0,0.00044657,60]
[368246892,1751071864795,-850.04,0.00044657,60]
[368246893,1751071864806,-490.0,0.00044657,60]
[368246894,1751071864815,-1470.22,0.00044657,60]
[368246895,1751071864825,-547.95,0.00044657,60]
[368246896,1751071864835,-490.0,0.00044657,60]
[368246897,1751071864846,-906.79,0.00044657,60]
[368246898,1751071864856,-656.99,0.00044657,60]
[368246899,1751071864866,-296.96,0.00044657,60]
[368246900,1751071864876,-490.0,0.00044657,60]
[368246901,1751071864886,-2168.75,0.00044657,60]
[368246902,1751071865099,-561.17,0.00044657,60]
[368246903,1751071865109,-532.35,0.00044657,60]
[368246904,1751071865119,-490.0,0.00044657,60]
[368246905,1751071865128,-1280.03,0.00044657,60]
[368246906,1751071865137,-490.0,0.00044657,60]
[368246907,1751071865147,-490.0,0.00044657,60]
[368246908,1751071865156,-923.38,0.00044657,60]
[368246909,1751071865166,-558.63,0.00044657,60]
[368246910,1751071865176,-394.67,0.00044657,60]
[368246911,1751071865186,-165.936068,0.00044657,60]
[368246912,1751071865196,-490.0,0.00044657,60]
[368246913,1751071865210,-1132.38,0.00044657,60]
[368246914,1751071865221,-490.0,0.00044657,60]
[368246915,1751071865234,-681.77,0.00044657,60]
[368246916,1751071865244,-490.0,0.00044657,60]
[368246917,1751071865254,-490.0,0.00044657,60]
[368246918,1751071865263,-490.0,0.00044657,60]
[368246919,1751071865273,-1998.82,0.00044657,60]
[368246920,1751071865284,-668.11,0.00044657,60]
[368246921,1751071865293,-490.0,0.00044657,60]
[368246922,1751071865303,-633.4,0.00044657,60]
[368246923,1751071865313,-716.54,0.00044657,60]
[368246924,1751071865326,-878.36,0.00044657,60]
[368246925,1751071865336,-490.0,0.00044657,60]
[368246926,1751071865346,-490.0,0.00044657,60]
[368246927,1751071865355,-1819.64,0.00044657,60]
[368246928,1751071865365,-490.0,0.00044657,60]
[368246929,1751071865375,-490.0,0.00044657,60]
[368246930,1751071865384,-4700.89,0.00044657,60]
[368246931,1751071865394,-865.33,0.00044657,60]
[368246932,1751071865403,-742.7,0.00044657,60]
[368246933,1751071865412,-490.0,0.00044657,60]
[368246934,1751071865422,-490.0,0.00044657,60]
[368246935,1751071865432,-490.0,0.00044657,60]
[368246936,1751071865443,-548.92,0.00044657,60]
[368246937,1751071865452,-634.14,0.00044657,60]
[368246938,1751071865462,-490.0,0.00044657,60]
[368246939,1751071865472,-645.35,0.00044657,60]
[368246940,1751071865482,-1740.41,0.00044657,60]
[368246941,1751071865495,-1968.42,0.00044657,14]
[368246942,1751071865505,-490.0,0.00044657,60]
[368246943,1751071865516,-513.85,0.00044657,60]
[368246944,1751071865525,-2452.13,0.00044657,60]
[368246945,1751071865535,-490.0,0.00044657,60]
[368246946,1751071865545,-490.0,0.00044657,60]
[368246947,1751071865554,-654.89,0.00044657,60]
[368246948,1751071865564,-490.0,0.00044657,60]
[368246949,1751071865575,-490.0,0.00044657,60]
[368246950,1751071865585,-763.1,0.00044657,60]
[368246951,1751071865595,-573.87,0.00044657,60]
[368246952,1751071865606,-490.0,0.00044657,60]
[368246953,1751071865621,-235.27167699,0.00044657,60]
[368246954,1751071865631,-948.87,0.00044657,60]
[368246955,1751071865642,-490.0,0.00044657,60]
[368246956,1751071865652,-490.0,0.00044657,60]
[368246957,1751071865662,-490.0,0.00044657,60]
[368246958,1751071865672,-492.97,0.00044657,60]
[368246959,1751071865682,-538.32,0.00044657,60]
[368246960,1751071865692,-490.0,0.00044657,60]
[368246961,1751071865703,-722.82,0.00044657,60]
[368246962,1751071865713,-1684.21,0.00044657,60]
[368246963,1751071865723,-490.0,0.00044657,60]
[368246964,1751071865736,-742.09,0.00044657,60]
[368246965,1751071865746,-490.0,0.00044657,60]
[368246966,1751071865756,-1592.37,0.00044657,60]
[368246967,1751071865766,-520.76,0.00044657,60]
[368246968,1751071865776,-490.0,0.00044657,60]
[368246969,1751071865786,-490.0,0.00044657,60]
[368246970,1751071865796,-1085.58,0.00044657,60]
[368246971,1751071865806,-592.17,0.00044657,60]
[368246972,1751071865816,-717.14,0.00044657,60]
[368246973,1751071865827,-588.68,0.00044657,60]
[368246974,1751071865837,-2828.04,0.00044657,60]
[368246975,1751071865846,-490.0,0.00044657,60]
[368246976,1751071865855,-2351.28,0.00044657,60]
[368246977,1751071865865,-490.0,0.00044657,60]
[368246978,1751071865875,-490.0,0.00044657,60]
[368246979,1751071865886,-1128.63,0.00044657,60]
[368246980,1751071865896,-1000.0,0.00044657,60]
[368246981,1751071865906,-373.04,0.00044657,60]
[368246982,1751071865916,-490.0,0.00044657,60]
[368246983,1751071865927,-490.0,0.00044657,60]
[368246984,1751071865937,-150.0,0.00044705,2]